Cogmind - Beta 10.2 @@@ ROGUE MODE // 2022.02.19 @ 07:12:35 Player: Conner Result: Destroyed by C-40 Crusher with Compactor Performance ------------- Evolutions (3) 1500 Regions Visited (7) 1400 Robots Destroyed (36) 180 Value Destroyed (1133) 1133 Prototype IDs (31) 620 Alien Tech Used (0) 0 Bonus (233) 233 TOTAL SCORE: 5066 Bonus ------- Follower Combat Kills 51 Aligned with FarCom 300 Friendly Fire -118 Cogmind --------- Core Integrity 0/700 Matter 130/300 Energy 81/100 System Corruption 0% Temperature Cool (0) Movement Core (50) Location -7/Waste Parts ------- > --- POWER (1) -------- (None) > --- PROPULSION (3) --- (None) > --- UTILITY (7) ------ (None) > --- WEAPON (2) ------- (None) > --- INVENTORY (4) ---- Wheel High-capacity Storage Unit Improved Medium Armor Plating Skeleton Box Peak State ------------ > --- POWER ------------ Antimatter Reactor > --- PROPULSION ------- Heavy Treads Carbon-fiber Leg > --- UTILITY ---------- High-capacity Storage Unit Advanced Targeting Computer Damper Plating Hacking Suite Advanced System Shield > --- WEAPON ----------- Plasma Cannon Advanced Assault Cannon > --- INVENTORY -------- Improved Deuterium Engine Wheel High-capacity Storage Unit Improved Medium Armor Plating Skeleton Box Heavy EM Shotgun Enhanced Autogun Enhanced Autogun Enhanced Autogun Assault Cannon Advanced EMP Blaster Grenade Launcher [Rating: 65] Favorites ----------- Power Ion Engine Engine Ion Engine Reactor Antimatter Reactor Propulsion Light Treads Treads Light Treads Leg Carbon-fiber Leg Wheel Armored Wheel Utility High-capacity Storage Unit Device Weight Redist. System Storage High-capacity Storage Unit Processor Advanced Targeting Computer Hackware Hacking Suite Protection Medium Armor Plating Weapon Assault Rifle Energy Gun Small Laser Energy Cannon Plasma Cannon Ballistic Gun Assault Rifle Ballistic Cannon Assault Cannon Launcher Advanced EMP Blaster Special Weapon Mining Laser Build | -11 -10 -10 -10 -9 -8 -7 -7 ------- Run | Scr Mat Min Exi Min Mat Fac Was Slots Evolved 6 | . . . . . 4 2 . Power . | . . . . . . . . Propulsion 1 | . . . . . 1 . . Utility 5 | . . . . . 3 2 . Weapon . | . . . . . . . . Parts Attached 71 | 7 2 1 2 5 32 5 17 Power 7 | 1 1 . . . 3 1 1 Engine 6 | 1 1 . . . 3 1 . Core . | . . . . . . . . Reactor 1 | . . . . . . . 1 Propulsion 15 | 4 . . . . 7 . 4 Treads 3 | 2 . . . . . . 1 Leg 2 | . . . . . . . 2 Wheel 10 | 2 . . . . 7 . 1 Hover . | . . . . . . . . Flight . | . . . . . . . . Utility 19 | . 1 . 2 . 11 2 3 Device 5 | . . . 1 . 4 . . Storage 3 | . 1 . 1 . 1 . . Processor 2 | . . . . . 2 . . Hackware 3 | . . . . . 1 1 1 Protection 6 | . . . . . 3 1 2 Artifact . | . . . . . . . . Weapon 30 | 2 . 1 . 5 11 2 9 Energy Gun 7 | 1 . . . 2 3 . 1 Energy Cannon 4 | . . . . . 1 2 1 Ballistic Gun 9 | 1 . . . 1 3 . 4 Ballistic Cannon 6 | . . . . . 3 . 3 Launcher 3 | . . . . 2 1 . . Special Weapon 1 | . . 1 . . . . . Impact Weapon . | . . . . . . . . Slashing Weapon . | . . . . . . . . Piercing Weapon . | . . . . . . . . Special Melee Weapon . | . . . . . . . . Unidentified Prototypes 5 | . . . . . 5 . . Parts Lost 14 | . 1 . . . 1 . 12 Power . | . . . . . . . . Propulsion 3 | . . . . . 1 . 2 Utility 4 | . . . . . . . 4 Weapon 7 | . 1 . . . . . 6 Highest Loss Streak 10 | . 1 . . . 1 . 10 Average Slot Usage (%) 90 | . 69 84 94 100 94 98 72 Engine 9 | . 14 14 14 14 9 7 1 Treads 14 | . 28 28 28 28 5 . 5 Wheel 10 | . . . . . 20 23 9 Device 7 | . . . 9 14 8 7 1 Storage 9 | . 4 14 14 14 9 7 6 Processor 4 | . . . . . 9 7 6 Hackware 5 | . . . . . 6 14 14 Protection 4 | . . . . . 6 13 7 Energy Gun 3 | . 8 . . 13 3 . . Energy Cannon 2 | . . . . . 2 7 6 Ballistic Gun 8 | . 14 14 14 13 6 7 . Ballistic Cannon 2 | . . . . . 5 . 5 Special Weapon 2 | . . 13 14 . . . . Naked Turns 16 | . . . . . . . 16 Heaviest Build 107 | 7 23 24 42 43 56 67 107 Greatest Support 70 | 40 40 40 40 40 44 38 70 Greatest Overweight (x) 8 | 2 . . 1 1 2 1 8 Average Overweight (x) 1 | . . . . 1 1 1 5 Largest Inventory Capacity 20 | 4 10 10 12 12 20 12 12 Average Capacity 11 | 4 5 10 10 12 12 12 11 Most Carried 12 | 2 4 4 7 12 12 12 12 Average Carried 9 | 1 3 4 4 11 11 12 11 Final Capacity 12 | 4 10 10 12 12 12 12 4 Final Carried 12 | 2 4 4 7 12 12 12 4 Class Distribution -------------------- 78% | Mutant 21% | Hacker-Mutant Dominant Class ---------------- Mutant | -10/Materials Mutant | -10/Mines Mutant | -10/Exiles Mutant | -9/Mines Mutant | -8/Materials Hacker-Mutant | -7/Factory Hacker-Mutant | -7/Waste Resources | -11 -10 -10 -10 -9 -8 -7 -7 ----------- Run | Scr Mat Min Exi Min Mat Fac Was Matter Collected 1307 | 183 144 . . 149 679 67 85 Remotely . | . . . . . . . . Salvage Created 1492 | . 277 . . 82 831 67 235 Parts 77 | . 16 . . 12 42 3 4 Haulers Intercepted 4 | . 1 . . . 3 . . Recyclers Shooed 1 | . . . . . 1 . . Parts Field Recycled . | . . . . . . . . Retrieved Matter . | . . . . . . . . Parts Self-Destructed . | . . . . . . . . Prevented . | . . . . . . . . Kills | -11 -10 -10 -10 -9 -8 -7 -7 ------- Run | Scr Mat Min Exi Min Mat Fac Was Combat Hostiles Destroyed 29 | . 5 . . 7 15 1 1 Guns 13 | . 4 . . 4 5 . . Cannons 10 | . . . . . 8 1 1 AOE 5 | . 1 . . 3 1 . . Classes Destroyed 8 | . 5 . . . 2 . 1 Hauler 4 | . 1 . . . 3 . . Recycler 1 | . 1 . . . . . . Watcher 2 | . 1 . . . 1 . . Swarmer 10 | . 3 . . 7 . . . Grunt 11 | . 2 . . . 9 . . Sentry 5 | . . . . . 4 1 . Hunter 2 | . . . . . 2 . . Compactor 1 | . . . . . . . 1 Best Kill Streak 5 | . 5 . . 3 3 1 1 Combat Bots Only 3 | . 3 . . 3 3 1 1 Max Kills in Single Turn 3 | . 2 . . 3 1 1 1 Gunslinging . | . . . . . . . . Exploded 2 | . 1 . . 2 1 . . Melee . | . . . . . . . . Uniques/NPCs Destroyed . | . . . . . . . . Combat | -11 -10 -10 -10 -9 -8 -7 -7 -------- Run | Scr Mat Min Exi Min Mat Fac Was Damage Taken 3043 | . 169 . . 144 779 222 1729 Core 908 | . 36 . . 18 125 41 688 Absorbed by Shields . | . . . . . . . . Core Remaining (%) 85 | 100 . . . 78 77 . . Volleys Fired 110 | . 19 . . 10 56 7 18 Largest 2 | . 2 . . 2 2 2 2 Hottest 128 | . 60 . . 80 100 105 128 Shots Fired 211 | . 32 . . 20 112 14 33 Gun 105 | . 32 . . 17 44 7 5 Cannon 103 | . . . . . 68 7 28 Launcher 3 | . . . . 3 . . . Special . | . . . . . . . . Kinetic 133 | . 19 . . 8 82 7 17 Thermal 31 | . . . . 9 . 6 16 Explosive 3 | . . . . 3 . . . Electromagnetic 44 | . 13 . . . 30 1 . Robot Hit Streak 11 | . 4 . . 5 11 4 11 Robot Miss Streak 11 | . 3 . . 3 11 1 3 Penetration Max . | . . . . . . . . Secondary Targets 1 | . . . . 1 . . . Max Gunslinging Chain 1 | . . . . 1 . . . Shots Hit Robots 138 | . 15 . . 11 76 9 27 Core Hits 77 | . 11 . . 8 44 3 11 Critical Hits 1 | . . . . . 1 . . Critical Kills . | . . . . . . . . Critical Parts Destroyed 1 | . . . . . 1 . . Melee Attacks . | . . . . . . . . Impact . | . . . . . . . . Slashing . | . . . . . . . . Piercing . | . . . . . . . . Sneak Attacks . | . . . . . . . . Combat Hostiles . | . . . . . . . . Follow-up Attacks . | . . . . . . . . Damage Inflicted 3203 | . 238 . . 340 1639 208 778 Guns 949 | . 162 . . 153 485 83 66 Cannons 1774 | . . . . . 1005 125 644 Explosions 412 | . 76 . . 187 149 . . Melee . | . . . . . . . . Ramming 68 | . . . . . . . 68 Kinetic 1590 | . 94 . . 69 966 83 378 Thermal 806 | . 76 . . 124 149 125 332 Explosive 147 | . . . . 147 . . . Electromagnetic 592 | . 68 . . . 524 . . Impact . | . . . . . . . . Slashing . | . . . . . . . . Piercing . | . . . . . . . . Highest Corruption . | . . . . . . . . Average Corruption . | . . . . . . . . Corruption Purged . | . . . . . . . . Overload Shots . | . . . . . . . . Overflow Damage 37 | . . . . . 37 . . Projectiles 29 | . . . . . 29 . . Explosions 8 | . . . . . 8 . . Melee . | . . . . . . . . Knockbacks 9 | . . . . . 9 . . Impact . | . . . . . . . . Kinetic 9 | . . . . . 9 . . Secondary . | . . . . . . . . Self-Inflicted Damage 69 | . . . . 37 . . 32 Shots 1 | . . . . 1 . . . Rammed 11 | . . . . . . . 11 Targets Rammed 11 | . . . . . . . 11 Kicked . | . . . . . . . . Crushed . | . . . . . . . . Highest Temperature 678 | . 30 . . 42 201 144 678 Average Temperature 126 | . 16 . . 16 47 79 276 Received Heat Transfer 423 | . 42 . . 6 297 78 . Effects 15 | . . . . . . . 15 Shutdowns 4 | . . . . . . . 4 Energy Bleed 3 | . . . . . . . 3 Interference 2 | . . . . . . . 2 Matter Decay 1 | . . . . . . . 1 Short Circuit 1 | . . . . . . . 1 Damage (major) 2 | . . . . . . . 2 Damage (core) 2 | . . . . . . . 2 Siege Activations . | . . . . . . . . Robots Corrupted 1 | . . . . . 1 . . Combat Hostiles 1 | . . . . . 1 . . Parts Fried 3 | . . . . . 3 . . Impact Corruptions . | . . . . . . . . Robots Melted . | . . . . . . . . Combat Hostiles . | . . . . . . . . Parts Melted . | . . . . . . . . Heat Transferred 1373 | . . . . 323 150 250 650 Parts Sabotaged . | . . . . . . . . Parts Stolen . | . . . . . . . . Parts Stripped . | . . . . . . . . Power Chain Reactions 3 | . 1 . . . 2 . . Missiles Intercepted . | . . . . . . . . Alert | -11 -10 -10 -10 -9 -8 -7 -7 ------- Run | Scr Mat Min Exi Min Mat Fac Was Peak Influence 359 | . 119 46 . 359 309 260 91 Initial 135 | . . 46 . . 61 135 91 Average 131 | . 83 46 . 237 142 157 50 Maximum Alert Level 1 | . . . . 1 1 1 . Low Security (%) 74 | 100 100 100 . 42 65 85 100 Level 1 25 | . . . . 57 34 14 . Level 2 . | . . . . . . . . Level 3 . | . . . . . . . . Level 4 . | . . . . . . . . Level 5 . | . . . . . . . . High Security . | . . . . . . . . Max Security . | . . . . . . . . Squads Dispatched 7 | . 1 . . . 4 2 . Investigation 2 | . . . . . . 2 . Extermination . | . . . . . . . . Reinforcement 5 | . 1 . . . 4 . . Assault . | . . . . . . . . Garrison . | . . . . . . . . Intercept . | . . . . . . . . Construction Impeded 1 | . . . . . 1 . . Haulers Reinforced . | . . . . . . . . Stealth | -11 -10 -10 -10 -9 -8 -7 -7 --------- Run | Scr Mat Min Exi Min Mat Fac Was Distress Signals 5 | . 1 . . . 4 . . Communications Jammed . | . . . . . . . . Distress Signals . | . . . . . . . . Times Spotted 50 | . 9 . . 10 24 1 6 Peak Tracking Total 5 | . 4 . . 4 5 1 4 Tactical Retreats 1 | . . . . . 1 . . Traps | -11 -10 -10 -10 -9 -8 -7 -7 ------- Run | Scr Mat Min Exi Min Mat Fac Was Traps Triggered 2 | . . . . . 1 1 . Indirectly . | . . . . . . . . Trap Hack Attempts . | . . . . . . . . Triggered . | . . . . . . . . Disarmed . | . . . . . . . . Reprogrammed . | . . . . . . . . Reused . | . . . . . . . . Traps Extracted . | . . . . . . . . Installed . | . . . . . . . . Triggered . | . . . . . . . . Machines | -11 -10 -10 -10 -9 -8 -7 -7 ---------- Run | Scr Mat Min Exi Min Mat Fac Was Machines Disabled 10 | . . . . 9 1 . . Max in Single Turn 8 | . . . . 8 1 . . Machines Sabotaged . | . . . . . . . . Garrisons Compromised . | . . . . . . . . Overloaded Fab Kills . | . . . . . . . . Fab Network Shutdowns . | . . . . . . . . Hacking | -11 -10 -10 -10 -9 -8 -7 -7 --------- Run | Scr Mat Min Exi Min Mat Fac Was Machines Accessed 9 | . 1 . 1 . 1 6 . Terminals 2 | . . . . . . 2 . Fabricators . | . . . . . . . . Repair Stations 2 | . . . . . 1 1 . Recycling Units 2 | . 1 . . . . 1 . Scanalyzers 2 | . . . . . . 2 . Garrison Access . | . . . . . . . . Total Hacks 25 | . 4 . 1 . 5 15 . Successful 12 | . 1 . 1 . 2 8 . Failed 13 | . 3 . . . 3 7 . Catastrophic . | . . . . . . . . Database Lockouts . | . . . . . . . . Manual 19 | . 4 . 1 . 2 12 . Terminals 6 | . . . . . . 6 . Fabricators . | . . . . . . . . Repair Stations 8 | . . . . . 5 3 . Recycling Units 6 | . 4 . . . . 2 . Scanalyzers 4 | . . . . . . 4 . Garrison Access . | . . . . . . . . Terminal Hacks 2 | . . . 1 . . 1 . Prototype ID Bank 1 | . . . . . . 1 . EX-Prototype ID Bank 1 | . . . 1 . . . . Fabricator Hacks . | . . . . . . . . Repair Station Hacks 1 | . . . . . 1 . . Scan Component 1 | . . . . . 1 . . Recycling Unit Hacks 1 | . . . . . . 1 . Retrieve Components 1 | . . . . . . 1 . Scanalyzer . | . . . . . . . . Garrison Access Hacks . | . . . . . . . . Unauthorized Hacks 8 | . 1 . . . 1 6 . Terminals 2 | . . . . . . 2 . Botnet 2 | . . . . . . 2 . Fabricators . | . . . . . . . . Repair Stations 2 | . . . . . 1 1 . Mechanics 2 | . . . . . 1 1 . Recycling Units 2 | . 1 . . . . 1 . Reject 2 | . 1 . . . . 1 . Scanalyzers 2 | . . . . . . 2 . Extract 2 | . . . . . . 2 . Garrison Access . | . . . . . . . . Data Cores Recovered . | . . . . . . . . Used . | . . . . . . . . Hacking Detections 6 | . 1 . . . 1 4 . Full Trace Events . | . . . . . . . . Feedback Events . | . . . . . . . . Feedback Blocked . | . . . . . . . . Robot Schematics Acquired . | . . . . . . . . Robots Built . | . . . . . . . . Matter . | . . . . . . . . Time . | . . . . . . . . Total Robot Build Rating . | . . . . . . . . Part Schematics Acquired 4 | . . . . . . 4 . Parts Built . | . . . . . . . . Matter . | . . . . . . . . Time . | . . . . . . . . Total Part Build Rating . | . . . . . . . . Parts Repaired . | . . . . . . . . Time . | . . . . . . . . Parts Recycled . | . . . . . . . . Recycled Matter . | . . . . . . . . Retrieved Matter . | . . . . . . . . Retrieved Components 2 | . . . . . . 2 . Parts Scanalyzed . | . . . . . . . . Part Schematics Acquired . | . . . . . . . . Parts Damaged . | . . . . . . . . Bothacking | -11 -10 -10 -10 -9 -8 -7 -7 ------------ Run | Scr Mat Min Exi Min Mat Fac Was Used RIF Installer . | . . . . . . . . Robots Hacked . | . . . . . . . . Non-combat . | . . . . . . . . Combat . | . . . . . . . . Robot Hacks Applied . | . . . . . . . . Relay Couplers Released . | . . . . . . . . Robots Rewired . | . . . . . . . . Allies Hacked . | . . . . . . . . Hacks Repelled . | . . . . . . . . Allies | -11 -10 -10 -10 -9 -8 -7 -7 -------- Run | Scr Mat Min Exi Min Mat Fac Was Total Allies 5 | . . 1 . 3 . . 1 Largest Group 3 | . . 1 1 3 1 . 1 Highest-Rated Group 40 | . . 31 31 40 16 . 31 Highest-Rated Ally 31 | . . 31 31 16 16 . 31 Total Orders . | . . . . . . . . Ally Attacks 44 | . . 1 . 10 4 . 29 Total Damage 736 | . . 21 . 106 44 . 565 Kills 6 | . . 1 . 4 . . 1 Allies Corrupted . | . . . . . . . . Allies Melted . | . . . . . . . . Intel | -11 -10 -10 -10 -9 -8 -7 -7 ------- Run | Scr Mat Min Exi Min Mat Fac Was Robot Analysis Total . | . . . . . . . . Derelict Logs Recovered 2 | . . 1 . 1 . . . Drone Launches . | . . . . . . . . Drone Recoveries . | . . . . . . . . Exploration | -11 -10 -10 -10 -9 -8 -7 -7 ------------- Run | Scr Mat Min Exi Min Mat Fac Was Turns Passed 3799 | 74 209 237 516 560 1325 355 523 Spaces Moved 2203 | 49 96 141 315 288 688 329 297 Core 25 | 9 . . . . . . 16 Treads 868 | 21 96 141 315 288 . . 7 Legs 1 | . . . . . . . 1 Wheels 1309 | 19 . . . . 688 329 273 Hover . | . . . . . . . . Flight . | . . . . . . . . Fastest Speed 50 | 50 160 160 160 180 93 100 50 Average Speed 133 | 126 160 160 162 180 103 100 144 Slowest Speed 330 | 160 160 160 180 180 120 100 330 Overloaded Moves . | . . . . . . . . Propulsion Burnouts . | . . . . . . . . Robots Hopped . | . . . . . . . . Cave-ins Triggered . | . . . . . . . . Exploration Rate (%) 42 | 5 25 21 76 69 37 9 98 Regions Visited 7 Branch Regions 3 Pre-discovered Areas 1 | . . . . 1 . . . Known Exits Taken . | . . . . . . . . Unknown Exits Taken 6 | 1 1 1 1 1 1 . . Scrap Searched 2 | . . . . 2 . . . Spaces Dug . | . . . . . . . . Terrain Destroyed 58 | . 2 . . 43 13 . . Melee . | . . . . . . . . Projectile 7 | . . . . . 7 . . AOE 51 | . 2 . . 43 6 . . Terrain Rammed . | . . . . . . . . Walls Destroyed . | . . . . . . . . Machines Disabled . | . . . . . . . . Actions | -11 -10 -10 -10 -9 -8 -7 -7 --------- Run | Scr Mat Min Exi Min Mat Fac Was Total 2868 | 59 121 152 318 309 1205 348 356 Wait 396 | . . 11 . 1 380 . 4 Move 2197 | 48 95 140 314 287 687 329 297 Hop . | . . . . . . . . Pick Up 28 | 2 3 . 2 5 13 2 1 Fast Attach 42 | 7 1 1 1 . 19 2 11 Attach 6 | . . . . . 2 . 4 Detach 2 | . . . . . 2 . . Swap 23 | . 1 . 1 5 11 3 2 Drop 53 | 2 2 . . 1 35 5 8 Fire 110 | . 19 . . 10 56 7 18 Melee . | . . . . . . . . Ram 11 | . . . . . . . 11 Kick . | . . . . . . . . Crush . | . . . . . . . . Escape Stasis . | . . . . . . . . Rewire . | . . . . . . . . Trap . | . . . . . . . . Miscellaneous . | . . . . . . . . Route ------- -11/Scrapyard -10/Materials (discovered 2 exits: [*Min x2]) -10/Mines (discovered 2 exits: Mat / *Exi) -10/Exiles -9/Mines (discovered 2 exits: *Mat x2) -8/Materials -7/Factory -7/Waste (discovered 1 exit: [*Fac]) History --------- Turn | Location | Event 12 | -11/Scrapyard | Discovered new exit (range 15) 75 | -11/Scrapyard | Entered Materials 124 | -10/Materials | Discovered new exit (range 15) 188 | -10/Materials | Discovered new exit (range 15) 284 | -10/Materials | Entered Mines 287 | -10/Mines | Received a Mining Laser from a helpful Derelict 307 | -10/Mines | Identified exit to Materials 315 | -10/Mines | Build established: Mutant 359 | -10/Mines | Assembled infested the area 364 | -10/Mines | Assisted by a Guerilla fighting off Assembled 424 | -10/Mines | Deemed a non-threat by the Exiles lab entrance 424 | -10/Mines | Discovered new exit (range 5) 521 | -10/Mines | Entered Exiles 521 | -10/Exiles | Accompanied by 1 ally 558 | -10/Exiles | Met 8R-AWN 587 | -10/Exiles | Met EX-HEX 630 | -10/Exiles | Met EX-BIN 649 | -10/Exiles | Aligned with FarCom system 651 | -10/Exiles | Given EX-Vault access code 693 | -10/Exiles | Opened EX-Vault 709 | -10/Exiles | Found Skeleton Box 745 | -10/Exiles | Warned to stay clear of 0b10 Research branches 789 | -10/Exiles | Met EX-DEC 838 | -10/Exiles | Visited The Gauntlet 1021 | -10/Exiles | Discovered new exit (range 11) 1037 | -10/Exiles | Left Exiles lab with Skeleton Box 1037 | -10/Exiles | Entered Mines 1107 | -9/Mines | Assisted by bots powering up and referring to "LRC-V3" 1559 | -9/Mines | Discovered new exit (range 5) 1583 | -9/Mines | Discovered new exit (range 5) 1597 | -9/Mines | Entered Materials 1597 | -8/Materials | Accompanied by 1 ally 1597 | -8/Materials | Evolved 4 slots: Propulsion x1, Utility x3 2552 | -8/Materials | Discovered new exit (range 5) 2922 | -8/Materials | Entered Factory 2922 | -7/Factory | Evolved 2 slots: Utility x2 3031 | -7/Factory | Discovered new exit (range 10) 3249 | -7/Factory | Build established: Hacker-Mutant 3277 | -7/Factory | Sucked down chute 3277 | -7/Factory | Entered Waste 3278 | -7/Waste | Met a frightened Derelict 3326 | -7/Waste | Spotted C-40 Crusher 3346 | -7/Waste | Crushed by Compactor (1 part destroyed, 1 dropped) 3349 | -7/Waste | Destroyed C-40 Crusher 3364 | -7/Waste | Found Damper Plating 3408 | -7/Waste | Crushed by Compactor (0 parts destroyed, 1 dropped) 3411 | -7/Waste | Crushed by Compactor (0 parts destroyed, 1 dropped) 3412 | -7/Waste | Allies destroyed C-40 Crusher 3414 | -7/Waste | Spotted C-40 Crusher 3428 | -7/Waste | Spotted C-40 Crusher 3506 | -7/Waste | Spotted C-40 Crusher 3551 | -7/Waste | Crushed by Compactor (0 parts destroyed, 1 dropped) 3583 | -7/Waste | Spotted C-40 Crusher 3727 | -7/Waste | Discovered new exit (range 11) 3758 | -7/Waste | Crushed by Compactor (1 part destroyed) 3769 | -7/Waste | Crushed by Compactor (1 part destroyed) 3776 | -7/Waste | Crushed by Compactor (0 parts destroyed, 1 dropped) 3778 | -7/Waste | Crushed by Compactor (0 parts destroyed, 1 dropped) 3779 | -7/Waste | Crushed by Compactor (1 part destroyed) 3781 | -7/Waste | Crushed by Compactor (1 part destroyed) 3782 | -7/Waste | Crushed by Compactor (1 part destroyed, 2 dropped) 3784 | -7/Waste | Crushed by Compactor (1 part destroyed, 1 dropped) 3786 | -7/Waste | Core integrity fell below 50% 3786 | -7/Waste | Crushed by Compactor (1 part destroyed) 3794 | -7/Waste | Core integrity fell below 20% 3800 | -7/Waste | Destroyed by C-40 Crusher with Compactor Last Messages --------------- 03779_ Acquired Enh. Autogun. 03779_ Assault Cannon crushed. 03781_ Enh. Autogun crushed. 03781_ Hcp. Storage Unit crushed. 03781_ Critical hit. 03781_ Hvy. Treads destroyed. 03782_ Grenade Launcher crushed. 03782_ Enh. Autogun crushed. 03782_ Arm. Wheel crushed. 03782_ Hacking Suite crushed. 03782_ Critical hit. 03782_ Broken Adv. Targeting Computer destroyed. 03784_ Adv. EMP Blaster crushed. 03784_ Enh. Autogun crushed. 03784_ Adv. System Shield crushed. 03785_ Arm. Wheel crushed. 03786_ Acquired Hvy. EM Shotgun. 03786_ Hvy. EM Shotgun crushed. 03793_ Imp. Deuterium Engine crushed. 03797_ Slammed into C-40 Crusher. Map ----- +----------------------------------------------------+ | ?????????????????????????????????????????????????? | | ?????????????????????????????????????????????????? | | ?????????????????????????????????????????????????? | | ?????????????????????????????????????????????????? | | ?????????????????????????????????????????????????? | | ?????????????????????????????????????????????????? | | ?????????????????????????????????????????????????? | | ?????????????????????????????????????????????????? | | ?????????????????????????????????????????????????? | | ?????????????????????????????????????????????????? | | ?????????????????????????????????????????????????? | | ?????????????????????????????????????????????????? | | ?????????????????????????????????????????????????? | | ?????????????????????????????????????????????????? | | ?????????????????????????????????????????????????? | | ?????????????????????????????????????????????????? | | ?????????????????????????????????????????????????? | | ?????????????????????????????????????????????????? | | ?????????????????????????????????????????????????? | | ##??????######??????######???????????????????????? | | #??????# #??????# ] #???????????????????????? | | #??????# #??????# #???????????????????????? | | #??????# #??????# #???????????????????????? | | #??????# #??????# #???????????????????????? | | ######## #??????# CC###?????????????????????? | | #??????# CC@ #?????????????????????? | | #??????# CCCC #?????????????????????? | | #??????# CCCC #?????????????????????? | | #??????# CC #?????????????????????? | | ######## #??????# CC###?????????????????????? | | #??????# #??????# #?????#######???????????? | | #??????# #??????# #???? ??????????? | | #??????# #??????# #??? ??????????? | | #??????# #??????# #### #?????????? | | #??????# #??????# #?????????? | | #??????# #??????# #?????????? | | #??????# #??????# < #?????????? | | #??????# #??????# #?????????? | | #??????# #??????# #### #?????????? | | #??????# #??????# #??? ??????????? | | #??????# #??????# #???? ??????????? | | #??????# #??????# #?????#######???????????? | | ######## ######## ###?????????????????????? | | #?????????????????????? | | #?????????????????????? | | #?????????????????????? | | #?????????????????????? | | ######## ######## ###?????????????????????? | | #??????# #??????# #???????????????????????? | | #??????# #??????# #???????????????????????? | +----------------------------------------------------+ Best States ------------- Heat Dissipation 48 Energy Generation 21 Energy Capacity 325 Matter Stores 300 Matter Capacity 300 Sight Range 18 Terrain Scan Density 10 Additional Mass Support 6 Armor Coverage 1200 Resistance: EM 90 Power Shielding 66 Evasion (%) 50 Targeting Accuracy 8 Recoil Reduction 2 Offensive Hacking 10 Defensive Hacking 14 Item Schematics ----------------- Imp. Terrain Scanner | -7/Factory | Extracted Chainsword | -7/Factory | Extracted Imp. Field Recycling Unit | -7/Factory | Extracted Imp. Sensor Array | -7/Factory | Extracted Robot Schematics ------------------ None Fabricated ------------ Nothing Alien Tech Used ----------------- None Achievements -------------- None Challenges ------------ None Game ------ Seed DroneHoverPlating Manual? 0 Play Time 00:23:02 Cumulative 51.0 hours Start 2022.02.19 @ 06:52:59 End 2022.02.19 @ 07:12:35 Sessions 1 Manual Loads 0 Difficulty Rogue Special Mode None Game No. 96 Rogue 96 Adventurer 0 Explorer 0 Win Type - Total 0 Types 0/0/0/0/0/0/0/0/0 Lore% 55 Gallery% 56 Achievement% 42 Wizard Run 0 Options --------- ASCII 0 Keyboard 0 Movement Numpad Keybinds 0 Fullscreen 1 Font 24/Smallcaps Map View 76x50 Tactical HUD 1 Map Filters NONE Filters NONE Steam 1 RUN: 1efcc854-923d-40ce-a13b-c69340b13e62